Cogmind - Beta 16 @@@ ROGUE MODE // 2025.12.31 @ 22:11:19 Player: telemetry Result: Destroyed by Striker with Plasma Lance Performance ------------- Evolutions (5) 2500 Regions Visited (13) 2600 Robots Destroyed (109) 545 Value Destroyed (2852) 2852 Prototype IDs (15) 300 Alien Tech Used (0) 0 Bonus (2757) 2757 TOTAL SCORE: 11554 Bonus ------- High Alert Combat Kills 27 Follower Combat Kills 1736 Met Warlord at Base 500 MAIN.C Attacked Warlord 500 Friendly Fire -6 Cogmind --------- Core Integrity 0/1000 Matter 300/300 Energy 100/100 System Corruption 6% Temperature Cool (0) Movement Core (350) Ox6 Location -5/Warlord Parts ------- > --- POWER (2) -------- (None) > --- PROPULSION (6) --- Gyrokinetic Inverter > --- UTILITY (7) ------ Medium Storage Unit Improved Sensor Array Hacking Suite Improved Hacking Suite > --- WEAPON (2) ------- Enhanced Force Lance > --- INVENTORY (10) --- Light Neutrino Core Micro Antimatter Reactor Improved Sensor Array ECM Suite Advanced ECM Suite Experimental Phase Shifter Hacking Suite Improved Plasma Cutter Peak State ------------ > --- POWER ------------ Light Angular Momentum Engine Micro Antimatter Reactor > --- PROPULSION ------- Gyrokinetic Inverter Gyrokinetic Inverter Gyrokinetic Inverter Gyrokinetic Inverter Combat Antigrav System Combat Antigrav System > --- UTILITY ---------- Medium Storage Unit Improved Sensor Array Improved Signal Interpreter Advanced Terrain Scanner Experimental Phase Shifter Hacking Suite Improved Hacking Suite > --- WEAPON ----------- Scythe Enhanced Force Lance > --- INVENTORY -------- Backup Power III Light Neutrino Core Improved Hover Unit Nuclear Pulse Thruster Q-thruster Improved Sensor Array ECM Suite Advanced ECM Suite Hacking Suite Improved Plasma Cutter [Rating: 98] Favorites ----------- Power Deuterium Engine Engine Deuterium Engine Power Core Light Nuclear Core Reactor Micro Antimatter Reactor Propulsion Gyrokinetic Inverter Treads Light Treads Leg Aluminum Leg Wheel Wheel Hover Unit Gyrokinetic Inverter Flight Unit Nuclear Pulse Thruster Utility Large Storage Unit Device Improved Sensor Array Storage Large Storage Unit Processor Improved Signal Interpreter Hackware Hacking Suite Protection Hardened Medium Armor Plating Weapon Enhanced Autogun Energy Gun Particle Gun Ballistic Gun Enhanced Autogun Ballistic Cannon Assault Cannon Launcher Grenade Launcher Special Weapon RU-N14's Throwing Claymores v3 Impact Weapon Great Maul Slashing Weapon Scythe Piercing Weapon Enhanced Force Lance Build | -11 -10 -10 -9 -9 -8 -7 -6 -5 -5 -5 -5 -5 -5 ------- Run | Yrd Mat Min Mat Min Mat Fac Fac Fac Was Fac Upp Upp War Slots Evolved 10 | . . . 2 . 2 2 2 2 . . . . . Power 1 | . . . . . . . . 1 . . . . . Propulsion 4 | . . . 1 . 1 1 1 . . . . . . Utility 5 | . . . 1 . 1 1 1 1 . . . . . Weapon . | . . . . . . . . . . . . . . Parts Attached 95 | 5 5 2 13 1 16 6 12 14 1 14 2 . 4 Power 12 | 1 . 1 1 . 2 . 1 3 . 3 . . . Engine 7 | 1 . 1 1 . 1 . . 2 . 1 . . . Core 4 | . . . . . 1 . 1 1 . 1 . . . Reactor 1 | . . . . . . . . . . 1 . . . Propulsion 38 | 2 1 . 6 . 8 1 5 7 . 5 . . 3 Treads 3 | 2 . . 1 . . . . . . . . . . Leg 14 | . 1 . 4 . 8 1 . . . . . . . Wheel 1 | . . . 1 . . . . . . . . . . Hover 14 | . . . . . . . 2 6 . 4 . . 2 Flight 6 | . . . . . . . 3 1 . 1 . . 1 Utility 29 | 1 2 1 2 1 3 3 6 3 1 4 2 . . Device 13 | . . . . 1 2 . 3 2 . 4 1 . . Storage 6 | 1 2 1 . . . 1 . . 1 . . . . Processor 3 | . . . . . . . 1 1 . . 1 . . Hackware 3 | . . . . . . 1 2 . . . . . . Protection 4 | . . . 2 . 1 1 . . . . . . . Artifact . | . . . . . . . . . . . . . . Weapon 16 | 1 2 . 4 . 3 2 . 1 . 2 . . 1 Energy Gun 2 | 1 1 . . . . . . . . . . . . Energy Cannon . | . . . . . . . . . . . . . . Ballistic Gun 5 | . 1 . 3 . . 1 . . . . . . . Ballistic Cannon 2 | . . . . . 2 . . . . . . . . Launcher 1 | . . . 1 . . . . . . . . . . Special Weapon 1 | . . . . . . . . . . . . . 1 Impact Weapon 1 | . . . . . . 1 . . . . . . . Slashing Weapon 2 | . . . . . 1 . . 1 . . . . . Piercing Weapon 2 | . . . . . . . . . . 2 . . . Special Melee Weapon . | . . . . . . . . . . . . . . Unidentified Prototypes 6 | . . . 2 1 . . . . . 2 . . 1 Corrupted Parts 1 | . 1 . . . . . . . . . . . . System Corruption 5 | . 5 . . . . . . . . . . . . Parts Lost 44 | . 2 1 4 . 3 11 7 7 . 1 . 1 7 Power 10 | . . . 1 . 1 2 1 2 . . . 1 2 Propulsion 21 | . 1 . 3 . . 5 5 4 . . . . 3 Utility 9 | . . . . . 2 2 1 1 . 1 . . 2 Weapon 4 | . 1 1 . . . 2 . . . . . . . Highest Loss Streak 7 | . 2 1 1 . 2 3 4 5 . 1 . 1 7 To Critical Strikes . | . . . . . . . . . . . . . . Average Backups 8 | . 2 4 10 13 13 12 4 3 6 8 10 9 9 Power . | . . . . . . . . . . 1 2 1 1 Propulsion . | . . . . . . . . . . 1 2 2 1 Utility 5 | . 1 3 7 9 9 9 2 3 4 4 4 5 5 Weapon 1 | . . 1 3 3 3 2 1 . . . . . . Tool/Special . | . . . . . . . . . . . . . . Unused Backups 15 | . . . . 1 1 5 3 . . 1 1 . 3 Power 1 | . . . . . . . . . . . . . 1 Propulsion 1 | . . . . 1 . . . . . . . . . Utility 7 | . . . . . 1 3 . . . 1 1 . 1 Weapon 5 | . . . . . . 2 3 . . . . . . Tool/Special 1 | . . . . . . . . . . . . . 1 Average Slot Usage (%) 84 | . 84 91 85 100 89 64 28 69 74 86 100 99 99 Engine 7 | . 14 14 10 11 5 2 . 2 9 7 5 4 4 Reactor 1 | . . . . . . . . . . 1 5 5 5 Treads 2 | . 19 13 . . . . . . . . . . . Leg 12 | . 8 14 18 33 35 27 . . . . . . . Hover 11 | . . . . . . . 6 23 17 24 35 35 34 Device 7 | . . . . 7 10 11 8 15 11 13 13 11 10 Storage 11 | . 21 28 22 14 9 6 . . 4 5 5 5 5 Processor 3 | . . . . . . . 4 5 11 7 8 11 10 Hackware 4 | . . . . . . . 5 11 11 11 11 11 11 Protection 3 | . . . 10 11 7 1 . . . . . . . Energy Gun 1 | . 14 6 . . . . . . . . . . . Ballistic Gun 7 | . 6 14 21 22 4 1 . . . . . . . Ballistic Cannon 1 | . . . . . 11 2 . . . . . . . Slashing Weapon 1 | . . . . . 1 4 . 4 5 5 5 5 . Piercing Weapon 1 | . . . . . . . . . . 4 5 5 5 Peak Build Rating 98 | 5 8 10 25 28 43 43 36 64 53 94 98 92 97 Average Rating 44 | 4 6 8 21 26 36 32 16 52 50 74 93 90 93 On Entrance 36 | . 5 8 9 24 28 43 1 18 49 53 94 92 89 Avg Prop Armor Cover (%) 6 | . 12 8 6 . 4 12 19 9 . 1 2 3 2 Naked Turns 69 | . . . . . . 23 46 . . . . . . Heaviest Build 62 | 10 29 29 44 50 62 44 14 20 25 42 42 39 40 Greatest Support 76 | 40 40 20 33 33 75 72 21 44 33 76 54 43 55 Greatest Overweight (x) 14 | 2 2 2 14 1 1 2 1 . . 1 . . 4 Average Overweight (x) . | . . 1 3 1 . . . . . . . . . Largest Inventory Capacity 15 | 8 15 15 15 15 15 15 5 5 10 10 10 10 10 Average Capacity 11 | 7 10 15 15 15 15 13 5 5 9 10 10 10 10 Most Carried 15 | . 3 7 15 15 15 14 5 5 9 10 10 10 10 Average Carried 9 | . 2 4 11 14 13 12 4 3 6 8 9 9 9 Final Capacity 15 | 8 15 15 15 15 15 5 5 5 10 10 10 10 10 Final Carried 15 | . 3 7 15 14 13 5 1 4 9 10 10 9 8 Scrap Suit Usage (%) 7 | . . . . . 29 59 . . . . . . . Parts Cannibalized 4 | . . . . . 1 3 . . . . . . . Class Distribution -------------------- 61% | Mutant 27% | Hacker-Scout 7% | Hacker-Mutant Dominant Class ---------------- Mutant | -10/Materials Mutant | -10/Mines Mutant | -9/Materials Mutant | -9/Mines Mutant | -8/Materials Mutant | -7/Factory Mutant | -6/Factory Hacker-Mutant | -5/Factory Hacker-Scout | -5/Waste Hacker-Scout | -5/Factory Hacker-Scout | -5/Upper Caves Hacker-Scout | -5/Upper Caves Hacker-Scout | -5/Warlord Resources | -11 -10 -10 -9 -9 -8 -7 -6 -5 -5 -5 -5 -5 -5 ----------- Run | Yrd Mat Min Mat Min Mat Fac Fac Fac Was Fac Upp Upp War Matter Collected 3009 | 150 71 381 910 10 547 193 94 320 41 184 43 15 50 Remotely . | . . . . . . . . . . . . . . Salvage Created 3189 | . 116 95 1619 . 641 292 . 231 . 123 . . 72 Parts 202 | . 7 16 92 . 47 15 . 14 . 9 . . 2 Haulers Intercepted 5 | . . . 1 . 3 . . . . 1 . . . Recyclers Shooed 2 | . . . 1 . 1 . . . . . . . . Parts Field Recycled . | . . . . . . . . . . . . . . Retrieved Matter . | . . . . . . . . . . . . . . Parts Self-Destructed 30 | . . . . . . . . . . . 9 21 . Prevented . | . . . . . . . . . . . . . . Parts Restored . | . . . . . . . . . . . . . . Kills | -11 -10 -10 -9 -9 -8 -7 -6 -5 -5 -5 -5 -5 -5 ------- Run | Yrd Mat Min Mat Min Mat Fac Fac Fac Was Fac Upp Upp War Combat Hostiles Destroyed 65 | . 2 5 32 . 12 9 . 5 . . . . . Melee 7 | . . . . . . 2 . 5 . . . . . Guns 37 | . 2 5 28 . 1 1 . . . . . . . Cannons 15 | . . . . . 11 4 . . . . . . . AOE 4 | . . . 4 . . . . . . . . . . Classes Destroyed 13 | . 4 4 4 . 1 . . . . . . . . Worker 6 | . 1 . 1 . 1 . . 3 . . . . . Builder 12 | . . 1 3 . 5 1 . 1 . 1 . . . Tunneler 3 | . . 1 1 . 1 . . . . . . . . Hauler 5 | . . . 1 . 3 . . . . 1 . . . Recycler 3 | . . . 2 . 1 . . . . . . . . Operator 7 | . 1 . 3 . 2 1 . . . . . . . Watcher 6 | . 1 . 4 . . . . 1 . . . . . Swarmer 13 | . . 3 . . . 5 . 5 . . . . . Grunt 38 | . 2 . 25 . 9 2 . . . . . . . Duelist 3 | . . . 2 . 1 . . . . . . . . Sentry 9 | . . . 5 . 2 1 . . . . . . 1 Demolisher 2 | . . 2 . . . . . . . . . . . Hunter 2 | . . . . . 1 1 . . . . . . . Best Kill Streak 7 | . 1 3 7 . 5 4 . 4 . 1 . . . Combat Bots Only 6 | . 1 3 6 . 3 4 . 4 . . . . . Max Kills in Single Turn 2 | . 1 2 2 . 2 1 . 1 . 1 . . 1 Gunslinging . | . . . . . . . . . . . . . . Exploded 2 | . . . 2 . . . . . . . . . . Melee 1 | . . . . . . 1 . 1 . . . . . Uniques/NPCs Destroyed . | . . . . . . . . . . . . . . Combat | -11 -10 -10 -9 -9 -8 -7 -6 -5 -5 -5 -5 -5 -5 -------- Run | Yrd Mat Min Mat Min Mat Fac Fac Fac Was Fac Upp Upp War Hostile Shots Fired 739 | . 24 12 106 1 147 219 62 107 . 5 5 3 48 Missed 282 | . 15 2 26 1 55 77 33 51 . 3 2 1 16 Hits 457 | . 9 10 80 . 92 142 29 56 . 2 3 2 32 Melee 8 | . . . 4 . . . . . . . . . 4 Projectile 449 | . 9 10 76 . 92 142 29 56 . 2 3 2 28 AOE 8 | . 1 4 . . . 3 . . . . . . . Critical Strikes 12 | . 1 . 3 . 3 2 . 1 . . . . 2 Damage Taken 7477 | . 261 224 1083 . 1210 1903 784 887 42 49 50 57 927 Core 2168 | . 41 26 112 . 111 395 472 415 13 . 19 1 563 Absorbed by Shields . | . . . . . . . . . . . . . . Regen/Repaired (Parts) 255 | . . . . . 103 30 . . 37 48 18 19 . Core Remaining (%) 68 | 100 . 73 . 72 79 43 44 . . . . . . Volleys Fired 259 | . 29 18 104 . 73 35 . . . . . . . Largest 2 | . 2 2 2 . 2 1 . . . . . . . Hottest 85 | . 85 85 50 . 74 37 . . . . . . . Shots Fired 421 | . 35 20 197 . 134 35 . . . . . . . Gun 263 | . 35 20 191 . 9 8 . . . . . . . Cannon 152 | . . . . . 125 27 . . . . . . . Launcher 6 | . . . 6 . . . . . . . . . . Special . | . . . . . . . . . . . . . . Kinetic 384 | . 6 18 191 . 134 35 . . . . . . . Thermal 16 | . 14 2 . . . . . . . . . . . Explosive 6 | . . . 6 . . . . . . . . . . Electromagnetic 15 | . 15 . . . . . . . . . . . . Robot Hit Streak 15 | . 8 5 15 . 8 3 . . . . . . . Robot Miss Streak 7 | . 2 2 7 . 3 3 . . . . . . . Penetration Max . | . . . . . . . . . . . . . . Secondary Targets 4 | . . . 4 . . . . . . . . . . Max Gunslinging Chain 1 | . . . 1 . . . . . . . . . . Shots Hit Robots 293 | . 22 12 115 . 89 38 . 13 . 3 . . 1 Core Hits 130 | . 8 9 56 . 37 8 2 7 . 2 . . 1 Critical Kills 1 | . . 1 . . . . . . . . . . . Critical Parts Destroyed 5 | . . . 2 . . 3 . . . . . . . Critical Strikes 19 | . 1 1 2 . 10 5 . . . . . . . Destroy 3 | . . 1 2 . . . . . . . . . . Blast 10 | . . . . . 10 . . . . . . . . Corrupt 1 | . 1 . . . . . . . . . . . . Smash 3 | . . . . . . 3 . . . . . . . Sever 2 | . . . . . . 2 . . . . . . . Melee Attacks 76 | . . . . . 8 31 . 21 . 13 2 . 1 Impact 13 | . . . . . . 13 . . . . . . . Slashing 50 | . . . . . 8 18 . 21 . 2 1 . . Piercing 13 | . . . . . . . . . . 11 1 . 1 Sneak Attacks 8 | . . . . . . 2 . 4 . 1 . . 1 Combat Hostiles . | . . . . . . . . . . . . . . Follow-up Attacks 2 | . . . . . . 1 . . . 1 . . . Damage Inflicted 7281 | . 306 115 2509 1 2219 1227 73 569 . 187 . . 75 Guns 2641 | . 303 112 2018 . 84 124 . . . . . . . Cannons 2425 | . . . . . 2115 310 . . . . . . . Explosions 485 | . . . 485 . . . . . . . . . . Melee 1615 | . . . . . . 793 . 560 . 187 . . 75 Ramming 115 | . 3 3 6 1 20 . 73 9 . . . . . Kinetic 4782 | . 34 97 2018 . 2199 434 . . . . . . . Thermal 130 | . 115 15 . . . . . . . . . . . Explosive 485 | . . . 485 . . . . . . . . . . Electromagnetic 154 | . 154 . . . . . . . . . . . . Impact 366 | . . . . . . 366 . . . . . . . Slashing 1017 | . . . . . . 427 . 560 . 30 . . . Piercing 232 | . . . . . . . . . . 157 . . 75 Highest Corruption 6 | . 5 5 . . . . 3 2 2 2 2 2 6 Average Corruption 3 | . 5 5 . . . . 2 1 2 2 2 2 2 Corruption Purged . | . . . . . . . . . . . . . . Corruption Blocked . | . . . . . . . . . . . . . . Effects 69 | . 12 23 . . . . 6 . 5 6 9 7 1 Message Errors 20 | . 2 8 . . . . 3 . . 2 3 2 . Matter Fused 10 | . 2 . . . . . 1 . 2 2 1 2 . Heat Flow Errors 15 | . 5 4 . . . . 1 . 1 . 2 1 1 Energy Discharges 11 | . 1 3 . . . . . . 1 2 2 2 . Parts Rejected 1 | . . 1 . . . . . . . . . . . Parts Fused 1 | . . 1 . . . . . . . . . . . Data Loss (minor) 8 | . . 5 . . . . 1 . 1 . 1 . . Data Loss (major) 1 | . 1 . . . . . . . . . . . . Misfires 1 | . 1 . . . . . . . . . . . . Alerts 1 | . . 1 . . . . . . . . . . . Overload Shots . | . . . . . . . . . . . . . . Overflow Damage 290 | . . . . . 10 230 . 50 . . . . . Projectiles 10 | . . . . . 10 . . . . . . . . Explosions . | . . . . . . . . . . . . . . Melee 280 | . . . . . . 230 . 50 . . . . . Knockbacks 37 | . . . . . 28 8 1 . . . . . . Impact 4 | . . . . . . 3 1 . . . . . . Kinetic 31 | . . . . . 26 5 . . . . . . . Secondary 2 | . . . . . 2 . . . . . . . . Self-Inflicted Damage 37 | . . . . . . . 33 4 . . . . . Shots . | . . . . . . . . . . . . . . Rammed 24 | . . 1 . . . . 21 2 . . . . . Targets Rammed 33 | . 1 1 3 1 4 . 21 2 . . . . . Kicked 9 | . 1 . 3 1 4 . . . . . . . . Crushed . | . . . . . . . . . . . . . . Highest Temperature 378 | . 338 146 288 . 132 11 260 4 166 378 143 194 97 Average Temperature 78 | . 112 61 49 . 39 7 115 4 89 154 73 104 41 Received Heat Transfer 1536 | . 84 . 498 . 441 339 135 . . . 18 12 9 Effects 5 | . 1 . 2 . . . . . . 2 . . . Shutdowns 2 | . 1 . . . . . . . . 1 . . . Interference 2 | . . . 2 . . . . . . . . . . Short Circuit 1 | . . . . . . . . . . 1 . . . Siege Activations . | . . . . . . . . . . . . . . Martial Activations . | . . . . . . . . . . . . . . Shielding Activations . | . . . . . . . . . . . . . . Robots Disrupted . | . . . . . . . . . . . . . . Combat Hostiles . | . . . . . . . . . . . . . . Robots Corrupted 2 | . . . . . . 2 . . . . . . . Combat Hostiles 2 | . . . . . . 2 . . . . . . . Parts Fried 2 | . . . . . . 2 . . . . . . . Impact Corruptions 6 | . . . . . . 6 . . . . . . . Robots Melted . | . . . . . . . . . . . . . . Combat Hostiles . | . . . . . . . . . . . . . . Parts Melted . | . . . . . . . . . . . . . . Heat Transferred 296 | . 259 37 . . . . . . . . . . . Parts Sabotaged 7 | . . . . . . . . . . . . . 7 Parts Stolen . | . . . . . . . . . . . . . . Parts Stripped . | . . . . . . . . . . . . . . Power Chain Reactions . | . . . . . . . . . . . . . . Alert | -11 -10 -10 -9 -9 -8 -7 -6 -5 -5 -5 -5 -5 -5 ------- Run | Yrd Mat Min Mat Min Mat Fac Fac Fac Was Fac Upp Upp War Maximum Alert Level 2 | . . . 2 . 1 . . . . 2 . . . Low Security (%) 82 | 100 100 100 67 100 58 100 100 100 100 54 . . . Level 1 14 | . . . 25 . 41 . . . . 31 . . . Level 2 3 | . . . 7 . . . . . . 14 . . . Level 3 . | . . . . . . . . . . . . . . Level 4 . | . . . . . . . . . . . . . . Level 5 . | . . . . . . . . . . . . . . High Security . | . . . . . . . . . . . . . . Max Security . | . . . . . . . . . . . . . . Peak Influence 515 | . 36 79 481 180 276 112 146 147 89 515 . . . Initial 180 | . . . 11 180 10 91 17 44 39 41 . . . Average 94 | . 4 12 156 110 129 35 50 64 48 197 . . . Influence Increases 5195 | . 109 145 1022 81 601 349 280 351 110 795 799 361 192 Destroy 0b10 Robot/C 2280 | . 40 100 640 60 300 180 . 100 . 240 400 180 40 Destroy 0b10 Robot/NC 230 | . 15 10 75 . 65 10 . 25 . 25 . . 5 Destroy Leader 476 | . 12 20 160 10 96 50 . 12 . 56 30 30 . Allied During Kill 880 | . . . . 11 26 . . . . 311 369 151 12 Successful Hack 89 | . 11 . 23 . 29 . 10 . . 16 . . . Select Force Hacks 30 | . . . 30 . . . . . . . . . . Disable Machine 120 | . 30 . 30 . . 15 . 15 . 30 . . . Destroy Structure 265 | . 1 . 19 . 25 4 . 4 110 102 . . . Partial Spotted 60 | . . . . . . . 15 45 . . . . . Lose Combat Pursuer 765 | . . 15 45 . 60 90 255 150 . 15 . . 135 Influence Decreases 5135 | . 109 114 590 517 425 515 227 328 164 367 407 516 856 Entered New Map 1663 | . . . 20 283 17 112 20 46 74 18 181 168 724 Time Decay 2822 | . 89 114 502 214 358 337 137 212 90 259 206 278 26 Lost Part 367 | . 20 . 40 . 30 66 70 70 . 10 . 10 51 Lost Ally 255 | . . . . 20 20 . . . . 80 20 60 55 Purge Threat 28 | . . . 28 . . . . . . . . . . Squads Dispatched 37 | . 2 . 10 . 6 10 4 2 . 3 . . . Investigation 13 | . 2 . 4 . 3 3 . . . 1 . . . Extermination 4 | . . . . . . 1 1 1 . 1 . . . Reinforcement 15 | . . . 4 . 3 3 3 1 . 1 . . . Assault 2 | . . . 2 . . . . . . . . . . Garrison 3 | . . . . . . 3 . . . . . . . Intercept . | . . . . . . . . . . . . . . Searches Triggered . | . . . . . . . . . . . . . . Construction Impeded 3 | . . . 1 . 1 . . . . 1 . . . Haulers Reinforced . | . . . . . . . . . . . . . . Active Scanning Responses . | . . . . . . . . . . . . . . Cargo Convoy Interrupts . | . . . . . . . . . . . . . . Stealth | -11 -10 -10 -9 -9 -8 -7 -6 -5 -5 -5 -5 -5 -5 --------- Run | Yrd Mat Min Mat Min Mat Fac Fac Fac Was Fac Upp Upp War Distress Signals 9 | . 1 . 3 . 3 . . 1 . . . . 1 Communications Jammed . | . . . . . . . . . . . . . . Distress Signals . | . . . . . . . . . . . . . . Times Spotted 237 | . 10 12 51 3 31 22 33 19 4 10 9 3 30 Peak Tracking Total 19 | . 4 10 7 3 6 4 9 8 3 4 7 1 19 Tactical Retreats 25 | . . 1 2 . 3 3 7 4 . 1 . . 4 ECM-based Alert Blocks 1 | . . . . . . . . 1 . . . . . Traps | -11 -10 -10 -9 -9 -8 -7 -6 -5 -5 -5 -5 -5 -5 ------- Run | Yrd Mat Min Mat Min Mat Fac Fac Fac Was Fac Upp Upp War Traps Triggered 4 | . . . 1 . . . 2 1 . . . . . Indirectly . | . . . . . . . . . . . . . . Trap Hack Attempts . | . . . . . . . . . . . . . . Triggered . | . . . . . . . . . . . . . . Disarmed 6 | . . . . . 6 . . . . . . . . Reprogrammed . | . . . . . . . . . . . . . . Reused . | . . . . . . . . . . . . . . Traps Extracted . | . . . . . . . . . . . . . . Installed . | . . . . . . . . . . . . . . Triggered . | . . . . . . . . . . . . . . Machines | -11 -10 -10 -9 -9 -8 -7 -6 -5 -5 -5 -5 -5 -5 ---------- Run | Yrd Mat Min Mat Min Mat Fac Fac Fac Was Fac Upp Upp War Machines Disabled 12 | . 2 . 2 . . 1 . 1 . 2 4 . . Max in Single Turn 1 | . 1 . 1 . . 1 . 1 . 1 . . . Garrison Access 1 | . . . . . 1 . . . . . . . . Machines Repaired . | . . . . . . . . . . . . . . Machines Dismantled . | . . . . . . . . . . . . . . Machines Sabotaged . | . . . . . . . . . . . . . . Overloaded Fab Kills . | . . . . . . . . . . . . . . Hacking | -11 -10 -10 -9 -9 -8 -7 -6 -5 -5 -5 -5 -5 -5 --------- Run | Yrd Mat Min Mat Min Mat Fac Fac Fac Was Fac Upp Upp War Machines Accessed 36 | . 3 . 7 1 7 3 2 3 . 3 . 1 6 Terminals 19 | . 3 . 6 . 5 1 1 2 . 1 . . . Fabricators 3 | . . . . . . 1 . 1 . 1 . . . Repair Stations 2 | . . . . . 1 . . . . 1 . . . Recycling Units 1 | . . . . . . . 1 . . . . . . Scanalyzers 1 | . . . 1 . . . . . . . . . . Garrison Access 2 | . . . . . 1 1 . . . . . . . Total Hacks 109 | . 14 . 22 1 24 6 5 11 . 12 . 1 13 Successful 67 | . 8 . 11 1 13 . 2 9 . 9 . 1 13 Failed 40 | . 6 . 11 . 11 6 3 1 . 2 . . . Catastrophic 10 | . 2 . 4 . 1 3 . . . . . . . Database Lockouts 2 | . . . . . . . . 1 . 1 . . . Manual 36 | . 8 . 11 . 10 2 2 2 . 1 . . . Terminals 69 | . 14 . 20 . 15 2 2 10 . 6 . . . Fabricators 4 | . . . . . . 2 . 1 . 1 . . . Repair Stations 10 | . . . . . 5 . . . . 5 . . . Recycling Units 3 | . . . . . . . 3 . . . . . . Scanalyzers 2 | . . . 2 . . . . . . . . . . Garrison Access 6 | . . . . . 4 2 . . . . . . . Terminal Hacks 44 | . 5 . 7 1 6 . . 7 . 4 . 1 13 Record 17 | . . . . . . . . 6 . 4 . . 7 Robot Analysis 4 | . 2 . 1 . 1 . . . . . . . . Prototype ID Bank 5 | . . . . . 1 . . . . . . . 4 Open Door 4 | . . . . 1 . . . . . . . 1 2 Branch Access Points 1 | . . . . . 1 . . . . . . . . Terminal Index 1 | . . . 1 . . . . . . . . . . Alert Level 1 | . . . 1 . . . . . . . . . . Unreport Threat 2 | . . . 2 . . . . . . . . . . Locate Traps 1 | . . . 1 . . . . . . . . . . Disarm Traps 1 | . . . . . 1 . . . . . . . . Recall Extermination 1 | . . . . . . . . 1 . . . . . Recall Reinforcements 1 | . . . . . 1 . . . . . . . . Registered Components 2 | . 1 . . . 1 . . . . . . . . Registered Prototypes 1 | . . . 1 . . . . . . . . . . Zone Layout 2 | . 2 . . . . . . . . . . . . Fabricator Hacks 2 | . . . . . . . . 1 . 1 . . . Network Status 1 | . . . . . . . . 1 . . . . . Build 1 | . . . . . . . . . . 1 . . . Repair Station Hacks 6 | . . . . . 3 . . . . 3 . . . Scan Component 4 | . . . . . 2 . . . . 2 . . . Repair 2 | . . . . . 1 . . . . 1 . . . Recycling Unit Hacks 2 | . . . . . . . 2 . . . . . . Recycle Component 1 | . . . . . . . 1 . . . . . . Process 1 | . . . . . . . 1 . . . . . . Scanalyzer 1 | . . . 1 . . . . . . . . . . Retrieve Study 1 | . . . 1 . . . . . . . . . . Garrison Access Hacks 1 | . . . . . 1 . . . . . . . . Seal Access 1 | . . . . . 1 . . . . . . . . Unauthorized Hacks 11 | . 3 . 3 . 3 . . 1 . 1 . . . Terminals 10 | . 3 . 2 . 3 . . 1 . 1 . . . Botnet 10 | . 3 . 2 . 3 . . 1 . 1 . . . Fabricators . | . . . . . . . . . . . . . . Repair Stations . | . . . . . . . . . . . . . . Recycling Units . | . . . . . . . . . . . . . . Scanalyzers 1 | . . . 1 . . . . . . . . . . Extract 1 | . . . 1 . . . . . . . . . . Garrison Access . | . . . . . . . . . . . . . . Data Cores Recovered 4 | . 1 . . . 2 . . . . 1 . . . Used 2 | . 1 . . . . . . . . 1 . . . Hacking Detections 24 | . 3 . 7 . 5 3 1 2 . 3 . . . Full Trace Events 10 | . 2 . 2 . 3 3 . . . . . . . Feedback Events . | . . . . . . . . . . . . . . Feedback Blocked . | . . . . . . . . . . . . . . Robot Schematics Acquired . | . . . . . . . . . . . . . . Robots Built . | . . . . . . . . . . . . . . Authchips . | . . . . . . . . . . . . . . Time . | . . . . . . . . . . . . . . Total Robot Build Rating . | . . . . . . . . . . . . . . Part Schematics Acquired 2 | . . . 2 . . . . . . . . . . Parts Built 2 | . . . . . . . . . . 2 . . . Authchips . | . . . . . . . . . . . . . . Time 64 | . . . . . . . . . . 64 . . . Total Part Build Rating 16 | . . . . . . . . . . 16 . . . Part Studies Acquired 1 | . . . 1 . . . . . . . . . . Parts Repaired 2 | . . . . . 1 . . . . 1 . . . Time 100 | . . . . . 53 . . . . 47 . . . Parts Recycled 1 | . . . . . . . 1 . . . . . . Recycled Matter . | . . . . . . . . . . . . . . Retrieved Matter . | . . . . . . . . . . . . . . Retrieved Components . | . . . . . . . . . . . . . . Parts Scanalyzed . | . . . . . . . . . . . . . . Part Schematics Acquired . | . . . . . . . . . . . . . . Parts Damaged . | . . . . . . . . . . . . . . Bothacking | -11 -10 -10 -9 -9 -8 -7 -6 -5 -5 -5 -5 -5 -5 ------------ Run | Yrd Mat Min Mat Min Mat Fac Fac Fac Was Fac Upp Upp War Used RIF Installer . | . . . . . . . . . . . . . . Robots Hacked . | . . . . . . . . . . . . . . Non-combat . | . . . . . . . . . . . . . . Combat . | . . . . . . . . . . . . . . Robot Hacks Applied . | . . . . . . . . . . . . . . Relay Couplers Released . | . . . . . . . . . . . . . . Fabnet Peak Effective % . | . . . . . . . . . . . . . . Robots Rewired . | . . . . . . . . . . . . . . Allies Hacked . | . . . . . . . . . . . . . . Hacks Repelled . | . . . . . . . . . . . . . . Allies | -11 -10 -10 -9 -9 -8 -7 -6 -5 -5 -5 -5 -5 -5 -------- Run | Yrd Mat Min Mat Min Mat Fac Fac Fac Was Fac Upp Upp War Total Allies 23 | . . . . 4 . . . . 19 . . . . Largest Group 19 | . . . . 3 3 . . . 19 17 11 10 7 Highest-Rated Group 684 | . . . . 63 63 . . . 684 632 442 392 244 Highest-Rated Ally 50 | . . . . 31 31 . . . 50 50 50 50 46 Total Orders . | . . . . . . . . . . . . . . Ally Attacks 366 | . . . . 11 25 . . . 153 70 34 40 33 Total Damage 10663 | . . . . 113 259 . . . 4566 2026 1988 911 800 Kills 63 | . . . . 3 3 . . . 8 16 20 10 3 Allies Corrupted . | . . . . . . . . . . . . . . Allies Melted 1 | . . . . . . . . . . . . . 1 Intel | -11 -10 -10 -9 -9 -8 -7 -6 -5 -5 -5 -5 -5 -5 ------- Run | Yrd Mat Min Mat Min Mat Fac Fac Fac Was Fac Upp Upp War Active Infowar (turns) 4126 | . . . . . 21 338 30 343 196 611 431 605 1551 Sensors 3445 | . . . . . . . . 51 196 611 431 605 1551 Terrain 2481 | . . . . . . . . . . . 335 605 1541 Structural 1315 | . . . . . 21 338 . 343 196 417 . . . Jamming 29 | . . . . . . . 29 . . . . . . ECM 149 | . . . . . . . 2 11 . 40 96 . . Robot Analysis Total 4 | . 2 . 1 . 1 . . . . . . . . Derelict Logs Recovered 7 | . . 2 . 1 . . . . . . 3 1 . Drone Launches 2 | . . . . 2 . . . . . . . . . Drone Recoveries 2 | . . . . 2 . . . . . . . . . Exploration | -11 -10 -10 -9 -9 -8 -7 -6 -5 -5 -5 -5 -5 -5 ------------- Run | Yrd Mat Min Mat Min Mat Fac Fac Fac Was Fac Upp Upp War Turns Passed 10584 | 49 588 1019 2052 442 1101 872 598 448 196 632 431 605 1551 Spaces Moved 7149 | 29 259 405 612 230 543 571 974 539 238 577 355 492 1325 Core 413 | 4 . . 74 . . 47 195 93 . . . . . Treads 586 | 25 117 399 45 . . . . . . . . . . Legs 1888 | . 142 6 443 230 543 524 . . . . . . . Wheels 50 | . . . 50 . . . . . . . . . . Hover 3818 | . . . . . . . 452 382 238 577 355 492 1322 Flight 394 | . . . . . . . 327 64 . . . . 3 Fastest Speed 37 | 50 160 240 140 180 97 50 37 40 62 52 64 69 59 Average Speed 111 | 148 195 240 287 180 148 119 50 59 62 62 68 69 68 Slowest Speed 750 | 160 260 260 750 180 185 270 100 70 62 102 69 69 360 Overloaded Moves . | . . . . . . . . . . . . . . Propulsion Burnouts . | . . . . . . . . . . . . . . Robots Hopped 6 | . . . . . . . 1 5 . . . . . Potential Cave-ins . | . . . . . . . . . . . . . . Cave-ins Triggered . | . . . . . . . . . . . . . . Exploration Rate (%) 50 | 3 41 93 46 74 57 21 25 17 90 19 59 69 95 Regions Visited 13 Branch Regions 5 Pre-discovered Areas . | . . . . . . . . . . . . . . Known Exits Taken 5 | . . . . 1 . . 1 . . 1 1 1 . Unknown Exits Taken 6 | 1 1 1 1 . 1 1 . . . . . . . Scrap Searched 4 | . . . . 1 . . . . . . 3 . . Spaces Dug 20 | . . . . . 7 3 . 2 . 7 1 . . Terrain Destroyed 54 | . . . 19 . 22 3 . 2 . 7 1 . . Melee 20 | . . . . . 7 3 . 2 . 7 1 . . Projectile 15 | . . . . . 15 . . . . . . . . AOE 19 | . . . 19 . . . . . . . . . . Terrain Rammed . | . . . . . . . . . . . . . . Walls Destroyed . | . . . . . . . . . . . . . . Machines Disabled . | . . . . . . . . . . . . . . Actions | -11 -10 -10 -9 -9 -8 -7 -6 -5 -5 -5 -5 -5 -5 --------- Run | Yrd Mat Min Mat Min Mat Fac Fac Fac Was Fac Upp Upp War Total 9254 | 33 306 432 778 259 694 676 1075 624 286 822 539 757 1973 Wait 1546 | . 11 4 32 23 29 25 54 43 42 205 178 265 635 Move 7127 | 28 258 404 611 229 542 570 971 531 237 576 354 491 1325 Hop 4 | . . . . . . . 1 3 . . . . . Pick Up 52 | . 2 2 10 2 6 2 8 10 5 3 1 . 1 Fast Attach 41 | 5 4 1 7 . 3 1 5 7 . 6 1 . 1 Attach 36 | . . . 1 . 3 7 9 7 1 5 . 1 2 Detach 12 | . . . . . 1 3 2 . 1 4 1 . . Swap 37 | . 1 2 6 1 14 1 . . . 8 1 . 3 Drop 33 | . . . 4 3 11 2 4 . . 4 2 . 3 Fire 259 | . 29 18 104 . 73 35 . . . . . . . Melee 72 | . . . . . 8 30 . 21 . 11 1 . 1 Ram 23 | . . . . . . . 21 2 . . . . . Kick 9 | . 1 . 3 1 4 . . . . . . . . Crush 1 | . . 1 . . . . . . . . . . . Escape Stasis . | . . . . . . . . . . . . . . Rewire 2 | . . . . . . . . . . . . . 2 Trap . | . . . . . . . . . . . . . . Miscellaneous . | . . . . . . . . . . . . . . Route ------- -11/Scrapyard -10/Materials -10/Mines (discovered 2 exits: *Mat x2) -9/Materials (discovered 4 exits: Mat x3 / *Min) -9/Mines (discovered 2 exits: *Mat x2) -8/Materials -7/Factory (discovered 2 exits: *Fac / [*Low]) -6/Factory (discovered 3 exits: *Fac x2 / [*Low]) -5/Factory -5/Waste -5/Factory -5/Upper Caves -5/Upper Caves -5/Warlord (discovered 1 exit: *Pro) History --------- Turn | Location | Event 11 | -11/Scrapyard | Discovered new exit (range 16) 50 | -11/Scrapyard | Entered Materials 222 | -10/Materials | Discovered new exit (range 9) 305 | -10/Materials | Build established: Mutant 638 | -10/Materials | Entered Mines 828 | -10/Mines | YI-UF0 nonchalantly dropped a Grenade Launcher on the ground 974 | -10/Mines | Learned 8 Materials zone layouts 1081 | -10/Mines | Assembled infested the area 1086 | -10/Mines | Assisted by a Guerilla fighting off Assembled 1195 | -10/Mines | Discovered new exit (range 13) 1531 | -10/Mines | Learned Materials trap positions 1545 | -10/Mines | Found a Scrap Suit stashed away for nefarious purposes 1550 | -10/Mines | Found Scrap Suit 1587 | -10/Mines | Discovered new exit (range 12) 1657 | -10/Mines | Entered Materials 1657 | -9/Materials | Evolved 2 slots: Propulsion x1, Utility x1 1658 | -9/Materials | Identified exit to Materials 1659 | -9/Materials | Loaded intel: 13 trap records 3062 | -9/Materials | Discovered new exit (range 15) 3657 | -9/Materials | First assault squad dispatched 3709 | -9/Materials | Entered Mines 3717 | -9/Mines | Assisted by bots powering up and referring to "LRC-V3" 3828 | -9/Mines | Found the Drone Emporium 3839 | -9/Mines | Learned Materials trap positions 3845 | -9/Mines | Found Prototype Device 3846 | -9/Mines | Identified Splice Drone Bay 3908 | -9/Mines | Discovered exit to Materials (range 10) 4024 | -9/Mines | Received a Mining Laser from a helpful Derelict 4092 | -9/Mines | Discovered exit to Materials (range 6) 4099 | -9/Mines | Received a Rocket Launcher from a helpful Derelict 4151 | -9/Mines | Entered Materials 4151 | -8/Materials | Accompanied by 3 allies 4151 | -8/Materials | Evolved 2 slots: Propulsion x1, Utility x1 4152 | -8/Materials | Loaded intel: 28 trap records 4993 | -8/Materials | Discovered new exit (range 12) 5155 | -8/Materials | Repaired Broken Assault Cannon? 5252 | -8/Materials | Entered Factory 5252 | -7/Factory | Evolved 2 slots: Propulsion x1, Utility x1 5463 | -7/Factory | Garrison activated, responded to threat 5694 | -7/Factory | Discovered new exit (range 6) 5854 | -7/Factory | Lost 3 parts (1p1n1w) 6101 | -7/Factory | Released all parts (5) 6106 | -7/Factory | Core integrity fell below 50% 6111 | -7/Factory | Discovered new exit (range 9) 6124 | -7/Factory | Entered another Factory area 6124 | -6/Factory | Evolved 2 slots: Propulsion x1, Utility x1 6148 | -6/Factory | Discovered new exit (range 14) 6604 | -6/Factory | Discovered new exit (range 13) 6650 | -6/Factory | Discovered new exit (range 14) 6722 | -6/Factory | Core integrity fell below 50% 6722 | -6/Factory | Identified exit to Factory 6722 | -6/Factory | Entered another Factory area 6722 | -5/Factory | Evolved 2 slots: Power x1, Utility x1 6753 | -5/Factory | Lost 4 parts (1p2n1u) 6774 | -5/Factory | Central database locked down 6984 | -5/Factory | Build established: Hacker-Mutant 7117 | -5/Factory | Lost 5 parts (4n1u) 7170 | -5/Factory | Sucked down chute 7170 | -5/Factory | Entered Waste 7203 | -5/Waste | Warlord forces began an assault 7236 | -5/Waste | Spotted C-40 Crusher 7241 | -5/Waste | Allies destroyed C-40 Crusher 7247 | -5/Waste | Spotted C-40 Crusher 7254 | -5/Waste | Spotted C-40 Crusher 7255 | -5/Waste | Allies destroyed C-40 Crusher 7256 | -5/Waste | Spotted C-40 Crusher 7261 | -5/Waste | Allies destroyed C-40 Crusher 7297 | -5/Waste | Spotted C-40 Crusher 7298 | -5/Waste | Allies destroyed C-40 Crusher 7326 | -5/Waste | Discovered new exit (range 11) 7331 | -5/Waste | Found Prototype Device 7344 | -5/Waste | Identified exit to Factory 7366 | -5/Waste | Entered Factory 7366 | -5/Factory | Accompanied by 17 allies 7419 | -5/Factory | Central database locked down 7495 | -5/Factory | Build established: Hacker-Scout 7580 | -5/Factory | Identified Exp. Phase Shifter 7591 | -5/Factory | Repaired Broken Enh. Force Lance 7703 | -5/Factory | Fabricated Cmb. Antigrav System (x2) 7951 | -5/Factory | Discovered new exit (range 5) 7954 | -5/Factory | Identified exit to Upper Caves 7998 | -5/Factory | Entered Upper Caves 7998 | -5/Upper Caves | Accompanied by 11 allies 8074 | -5/Upper Caves | Build established: Hacker-Mutant 8100 | -5/Upper Caves | Learned Factory trap positions 8347 | -5/Upper Caves | Discovered new exit (range 11) 8358 | -5/Upper Caves | Identified exit to Upper Caves 8366 | -5/Upper Caves | Attracted the attention of an 0b10 base 8395 | -5/Upper Caves | Learned Factory garrison access intel 8399 | -5/Upper Caves | Build established: Hacker-Scout 8429 | -5/Upper Caves | Entered another Upper Caves area 8429 | -5/Upper Caves | Accompanied by 10 allies 8438 | -5/Upper Caves | Attacked by a delusional Derelict stockpiling parts 8561 | -5/Upper Caves | Encountered a Warlord checkpoint 8697 | -5/Upper Caves | Spotted B-75 Beast 8698 | -5/Upper Caves | Learned Factory non-interactive machine intel 8728 | -5/Upper Caves | Allies destroyed B-75 Beast 8728 | -5/Upper Caves | Attracted the attention of an 0b10 checkpoint 8981 | -5/Upper Caves | Discovered new exit (range 16) 8994 | -5/Upper Caves | Identified exit to Warlord 9034 | -5/Upper Caves | Entered Warlord 9034 | -5/Warlord | Accompanied by 7 allies 9083 | -5/Warlord | Discovered new exit (range 9) 9088 | -5/Warlord | Identified exit to Proximity Caves 9133 | -5/Warlord | System corruption cleaned by Quarantine Array 9211 | -5/Warlord | Opened side exit 9285 | -5/Warlord | Found Prototype Special Weapon 9285 | -5/Warlord | Identified RU-N14's Throwing Claymores v3 9905 | -5/Warlord | Warlord's base attacked by MAIN.C 9931 | -5/Warlord | Met Warlord 10255 | -5/Warlord | Warlord forces counterattacked 10289 | -5/Warlord | Spotted Executioner 10310 | -5/Warlord | Lost 4 allies 10378 | -5/Warlord | Spotted Striker 10427 | -5/Warlord | Lost 18 allies 10558 | -5/Warlord | Spotted Striker 10569 | -5/Warlord | Spotted Striker 10570 | -5/Warlord | Core integrity fell below 50% 10571 | -5/Warlord | Spotted Striker 10580 | -5/Warlord | Warlord base infiltrated, sounded retreat 10581 | -5/Warlord | Core integrity fell below 20% 10585 | -5/Warlord | Destroyed by Striker with Plasma Lance Last Messages --------------- 10569_ Imp. Signal Interpreter blown off. 10569_ Cmb. Antigrav System blown off. 10569_ E-15 Imp destroyed. 10571_ Acquired 10 matter. 10573_ Striker knocked back. 10573_ Knocked back. 10575_ Q-thruster destroyed. 10575_ Adv. Terrain Scanner destroyed. 10575_ P-80 Master resets P-70 Sage, system corruption cleaned. 10576_ Knocked back. 10580_ ANNOUNCEMENT: Base interior infiltrated, regroup at designated outer cave rendezvous points. 10581_ Knocked back. 10583_ P-80 Master resets P-70 Sage, system corruption cleaned. 10584_ Imp. Terrain Scan Processor destroyed. 10585_ Nuclear Pulse Thruster destroyed. 10585_ Mic. Antimatter Reactor destroyed. Map ----- +----------------------------------------------------+ | ######""###############??# ##? ? ##?? | | %= #######""###########?###### #### #??# | | #######""####?######?##### ##### ##??# | | % % ######""################# ###### ##??? | | %! % ####################?#### ####### ####? | | ! % %% ######################### ####??#" ##?## | | %% ######################### ######## #??? | | % ##################?##### ###### #### | | %#"######################## ##?# ??? | | ## ####################### ## ### #??# | | #" ###################### # %#### ## "??# | | #" ##################### #?## ## #?#? | | ## ################?#### p#### ## ###?? | | # "#################### ##p #### ##??# | | " #########################" ###### #####? | | # ##?###################### p ####?#######?###? | | #=!####?######?##?##?##?####pp#######?#?##?#???# | | #^ ############?############ ##?###?###?#####?? | | #^%#####?#######?#?########; ;###???####??#?#?# | | # #########?###?######?## = ##?###??#?##??#? | | + ###############???#?### =%/ #??#?#?#####?#? | | ^# ######?###########?### |=K ####?########## | | ## ########??#######??### /=K ##???#####?#?#? | | # "!!%#######X########;;!%=% #????#???##???? | | " =!]!=i % %=%% ; ##?##########??? | | # ==%!%! @K ;##?###??##?#####? | | " ######################%;;%; #######?##?##??? | | ######??######??########### #% ###?####??##?#??#? | | ##?##########???##################????##???#?#??? | | ###?##?###?####?####?##?##?##??###??#???###?##??# | | ######?#########?#?###?######???####??##??##????? | | ############?#######?##?#?#???##?#?##??#???#???#? | | | | | | | | | | | | | | | | | | | | | | | | | | | | | | | | | | | | | +----------------------------------------------------+ Best States ------------- Heat Dissipation 40 Energy Generation 32 Energy Capacity 310 Matter Stores 450 Matter Capacity 450 Sight Range 16 Robot Scan Range 15 Terrain Scan Range 20 Terrain Scan Density 110 ECM Strength 2 Jamming Range 12 Additional Mass Support 9 Armor Coverage 450 Phase Shifting 20 Evasion (%) 65 Recoil Reduction 2 Offensive Hacking 22 Item Schematics ----------------- Sml. Storage Unit | -9/Materials | Extracted Lgt. EM Pulse Cannon | -9/Materials | Extracted Robot Schematics ------------------ None Fabricated ------------ Cmb. Antigrav System | x2 | -5/Factory | Preloaded Repaired ---------- Assault Cannon | 33% | -8/Materials | Broken Enh. Force Lance | 20% | -5/Factory | Broken Studied --------- Aluminum Leg | -9/Materials | Hacked Alien Tech Used ----------------- None Achievements -------------- A Powerful Ally? Factory Defaults Omniscient Cartographer Plot Armor Sprinter Challenges ------------ None Game ------ Seed ControlSubdwellerBay Manual? 0 Play Time 02:01:19 Cumulative 30.2 hours Start 2025.12.31 @ 19:44:26 End 2025.12.31 @ 22:11:19 Sessions 1 Manual Loads 0 Difficulty Rogue Special Mode None Game No. 28 Rogue 28 Adventurer 0 Explorer 0 Win Type - Total 0 Types 0/0/0/0/0/0/0/0/0/0 Lore% 29 Gallery% 24 Achievement% 23 Wizard Run 0 Options --------- Layout 1 ASCII 0 Keyboard 0 Movement Numpad Keybinds 0 Fullscreen 1 Font 24/Smallcaps Map View 50x40 Zoom Use 0% Tactical HUD 1 Map Filters NONE Filters NONE Steam 1 RUN: c10deba9-3ca0-4ddc-9733-6a407f60e7d3